[Event "Chessity Nationale Pupillendag 2018 - Groep F"]
[Site "Meppel, Netherlands"]
[Date "2018.06.23"]
[Round "3.1"]
[White "De Vreugt Pezo, Max"]
[Black "Grooten, Tommy"]
[Result "1-0"]
[TimeControl "15 min + 10 sec"]
[WhiteElo "922"]
[BlackElo "1408"]

1. e4 {[%clk 00:15:19]} c5 {[%clk 00:15:20]} {[%emt 00:00:01]} 2. Nf3 {[%clk
00:15:27]} {[%emt 00:00:01]} e6 {[%clk 00:15:29]} {[%emt 00:00:02]} 3. Nc3
{[%clk 00:15:34]} {[%emt 00:00:03]} d6 {[%clk 00:15:35]} {[%emt 00:00:04]} 4.
Bb5+ {[%clk 00:15:37]} {[%emt 00:00:07]} Bd7 {[%clk 00:15:23]} {[%emt
00:00:22]} 5. Bxd7+ {[%clk 00:15:34]} {[%emt 00:00:11]} Qxd7 {[%clk 00:15:16]}
{[%emt 00:00:18]} 6. d3 {[%clk 00:15:27]} {[%emt 00:00:18]} Nf6 {[%clk
00:15:20]} {[%emt 00:00:06]} 7. Be3 {[%clk 00:15:28]} {[%emt 00:00:08]} Nc6
{[%clk 00:15:04]} {[%emt 00:00:27]} 8. O-O {[%clk 00:15:24]} {[%emt 00:00:13]}
Be7 {[%clk 00:15:09]} {[%emt 00:00:05]} 9. Re1 {[%clk 00:15:09]} {[%emt
00:00:25]} Ng4 {[%clk 00:14:37]} {[%emt 00:00:43]} 10. Bd2 {[%clk 00:14:50]}
{[%emt 00:00:28]} Nge5 {[%clk 00:14:33]} {[%emt 00:00:14]} 11. Nxe5 {[%clk
00:14:32]} {[%emt 00:00:29]} dxe5 {[%clk 00:14:35]} {[%emt 00:00:08]} 12. Be3
{[%clk 00:13:54]} {[%emt 00:00:47]} Nd4 {[%clk 00:14:30]} {[%emt 00:00:15]} 13.
Ne2 {[%clk 00:13:19]} {[%emt 00:00:45]} O-O {[%clk 00:13:33]} {[%emt 00:01:07]}
14. Rc1 {[%clk 00:12:29]} {[%emt 00:01:00]} f5 {[%clk 00:13:20]} {[%emt
00:00:24]} 15. c3 {[%clk 00:12:03]} {[%emt 00:00:36]} Nxe2+ {[%clk 00:12:46]}
{[%emt 00:00:43]} 16. Qxe2 {[%clk 00:12:09]} {[%emt 00:00:04]} f4 {[%clk
00:12:47]} {[%emt 00:00:10]} 17. Bd2 {[%clk 00:12:12]} {[%emt 00:00:05]} Rf6
{[%clk 00:12:34]} {[%emt 00:00:26]} 18. Qh5 {[%clk 00:11:14]} {[%emt 00:01:06]}
Bd6 {[%clk 00:12:04]} {[%emt 00:00:42]} 19. c4 {[%clk 00:11:13]} {[%emt
00:00:10]} Rh6 {[%clk 00:11:28]} {[%emt 00:00:46]} 20. Qf3 {[%clk 00:11:06]}
{[%emt 00:00:17]} Qe7 {[%clk 00:11:27]} {[%emt 00:00:11]} 21. Rcd1 {[%clk
00:10:59]} {[%emt 00:00:16]} Rf8 {[%clk 00:11:23]} {[%emt 00:00:15]} 22. b3
{[%clk 00:10:21]} {[%emt 00:00:48]} Qh4 {[%clk 00:11:23]} {[%emt 00:00:10]} 23.
h3 {[%clk 00:10:10]} {[%emt 00:00:21]} Rg6 {[%clk 00:11:02]} {[%emt 00:00:32]}
24. Kh2 {[%clk 00:09:58]} {[%emt 00:00:19]} Rff6 {[%clk 00:09:07]} {[%emt
00:02:07]} 25. Rg1 {[%clk 00:09:50]} {[%emt 00:00:16]} Rh6 {[%clk 00:08:58]}
{[%emt 00:00:22]} 26. Rdf1 {[%clk 00:09:33]} {[%emt 00:00:26]} Rfg6 {[%clk
00:08:44]} {[%emt 00:00:24]} 27. Bc1 {[%clk 00:08:55]} {[%emt 00:00:49]} Qd8
{[%clk 00:08:05]} {[%emt 00:00:49]} 28. Bd2 {[%clk 00:08:57]} {[%emt 00:00:07]}
Be7 {[%clk 00:07:45]} {[%emt 00:00:30]} 29. Bc3 {[%clk 00:08:51]} {[%emt
00:00:16]} Bf6 {[%clk 00:07:47]} {[%emt 00:00:09]} 30. Bd2 {[%clk 00:08:04]}
{[%emt 00:00:57]} Bh4 {[%clk 00:07:30]} {[%emt 00:00:27]} 31. Be1 {[%clk
00:07:57]} {[%emt 00:00:15]} Rf6 {[%clk 00:06:48]} {[%emt 00:00:54]} 32. Kh1
{[%clk 00:07:20]} {[%emt 00:00:47]} Rf7 {[%clk 00:06:51]} {[%emt 00:00:06]} 33.
Kh2 {[%clk 00:07:25]} {[%emt 00:00:05]} Qg5 {[%clk 00:06:59]} {[%emt 00:00:02]}
34. a4 {[%clk 00:06:34]} {[%emt 00:01:01]} Qf6 {[%clk 00:07:05]} {[%emt
00:00:05]} 35. a5 {[%clk 00:05:29]} {[%emt 00:01:15]} g5 {[%clk 00:07:11]}
{[%emt 00:00:04]} 36. Qg4 {[%clk 00:05:29]} {[%emt 00:00:06]} f3 {[%clk
00:06:12]} {[%emt 00:01:14]} 37. g3 {[%clk 00:05:09]} {[%emt 00:00:29]} a6
{[%clk 00:06:13]} {[%emt 00:00:09]} 38. gxh4 {[%clk 00:04:55]} {[%emt
00:00:23]} Rxh4 {[%clk 00:05:25]} {[%emt 00:00:58]} 39. Qxh4 {[%clk 00:04:49]}
{[%emt 00:00:15]} Rg7 {[%clk 00:05:25]} {[%emt 00:00:11]} 40. Qg4 {[%clk
00:04:45]} {[%emt 00:00:12]} h6 {[%clk 00:05:07]} {[%emt 00:00:31]} 41. Rg3
{[%clk 00:04:43]} {[%emt 00:00:11]} Qg6 {[%clk 00:05:09]} {[%emt 00:00:08]} 42.
Rfg1 {[%clk 00:04:45]} {[%emt 00:00:08]} Qe8 {[%clk 00:04:58]} {[%emt
00:00:21]} 43. h4 {[%clk 00:04:27]} {[%emt 00:00:27]} h5 {[%clk 00:04:58]}
{[%emt 00:00:10]} 44. Qxf3 {[%clk 00:04:14]} {[%emt 00:00:24]} g4 {[%clk
00:05:07]} {[%emt 00:00:02]} 45. Qf6 {[%clk 00:03:52]} {[%emt 00:00:27]} Rg6
{[%clk 00:05:12]} {[%emt 00:00:09]} 46. Qxe5 {[%clk 00:03:45]} {[%emt
00:00:16]} Rg7 {[%clk 00:05:16]} {[%emt 00:00:06]} 47. Bd2 {[%clk 00:03:48]}
{[%emt 00:00:07]} Qf8 {[%clk 00:05:02]} {[%emt 00:00:24]} 48. Qxe6+ {[%clk
00:03:51]} {[%emt 00:00:07]} 1-0

[Event "Chessity Nationale Pupillendag 2018 - Groep F"]
[Site "Meppel, Netherlands"]
[Date "2018.06.23"]
[Round "3.2"]
[White "Jakhari, Ansh"]
[Black "Fallaux, Storm"]
[Result "1-0"]
[TimeControl "15 min + 10 sec"]
[WhiteElo "1293"]
[BlackElo "779"]

1. e4 {[%clk 00:15:17]} e5 {[%clk 00:15:18]} 2. Nf3 {[%clk 00:15:17]} Nc6 3.
Bc4 {[%clk 00:15:17]} Bc5 {[%clk 00:15:18]} 4. c3 {[%clk 00:15:17]} Nf6 {[%clk
00:15:18]} 5. d4 {[%clk 00:15:17]} exd4 {[%clk 00:15:18]} 6. cxd4 {[%clk
00:15:17]} Bb4+ {[%clk 00:16:01]} {[%emt 01:29:04]} 7. Bd2 {[%clk 00:16:13]}
Nxe4 {[%clk 00:16:05]} {[%emt 00:00:06]} 8. Bxb4 {[%clk 00:16:13]} {[%emt
00:00:10]} Nxb4 {[%clk 00:16:13]} {[%emt 00:00:02]} 9. Qb3 {[%clk 00:16:04]}
{[%emt 00:00:19]} a5 {[%clk 00:16:13]} {[%emt 00:00:11]} 10. Bxf7+ {[%clk
00:16:07]} {[%emt 00:00:06]} Kf8 {[%clk 00:16:17]} {[%emt 00:00:06]} 11. a3
{[%clk 00:16:07]} {[%emt 00:00:12]} Nc6 {[%clk 00:16:22]} {[%emt 00:00:05]} 12.
Bd5 {[%clk 00:16:07]} {[%emt 00:00:08]} Qe7 {[%clk 00:15:58]} {[%emt 00:00:34]}
13. O-O {[%clk 00:16:15]} {[%emt 00:00:02]} a4 {[%clk 00:16:00]} {[%emt
00:00:08]} 14. Qa2 {[%clk 00:16:07]} {[%emt 00:00:19]} Nf6 {[%clk 00:15:49]}
{[%emt 00:00:20]} 15. Re1 {[%clk 00:16:08]} {[%emt 00:00:09]} Qd6 {[%clk
00:15:27]} {[%emt 00:00:32]} 16. Bxc6 {[%clk 00:16:15]} {[%emt 00:00:03]} bxc6
{[%clk 00:15:30]} {[%emt 00:00:08]} 17. Nc3 {[%clk 00:15:55]} {[%emt 00:00:29]}
Rb8 {[%clk 00:15:08]} {[%emt 00:00:32]} 18. Ne5 {[%clk 00:15:45]} {[%emt
00:00:20]} Nd5 {[%clk 00:14:14]} {[%emt 00:01:04]} 19. Ne4 {[%clk 00:15:52]}
{[%emt 00:00:02]} Qe6 {[%clk 00:13:54]} {[%emt 00:00:30]} 20. Nc5 {[%clk
00:15:54]} {[%emt 00:00:09]} Qd6 {[%clk 00:13:52]} {[%emt 00:00:11]} 21. Re2
{[%clk 00:15:26]} {[%emt 00:00:39]} Bb7 {[%clk 00:13:11]} {[%emt 00:00:47]} 22.
Nexd7+ {[%clk 00:15:26]} {[%emt 00:00:14]} Kf7 {[%clk 00:13:07]} {[%emt
00:00:14]} 23. Nxb8 {[%clk 00:15:28]} {[%emt 00:00:08]} Rxb8 {[%clk 00:13:15]}
{[%emt 00:00:01]} 24. Qb1 {[%clk 00:15:29]} {[%emt 00:00:09]} Nf6 {[%clk
00:12:48]} {[%emt 00:00:37]} 25. Qf5 {[%clk 00:15:25]} {[%emt 00:00:15]} Bc8
{[%clk 00:12:40]} {[%emt 00:00:17]} 26. Qe5 {[%clk 00:15:32]} {[%emt 00:00:03]}
Qxe5 {[%clk 00:12:44]} {[%emt 00:00:07]} 27. dxe5 {[%clk 00:15:41]} {[%emt
00:00:01]} Nd5 {[%clk 00:12:47]} {[%emt 00:00:07]} 28. e6+ {[%clk 00:15:51]}
{[%emt 00:00:01]} Ke7 {[%clk 00:12:52]} {[%emt 00:00:04]} 29. Nxa4 {[%clk
00:15:45]} {[%emt 00:00:16]} Bxe6 {[%clk 00:12:48]} {[%emt 00:00:14]} 30. Rae1
{[%clk 00:15:53]} {[%emt 00:00:01]} Nf4 {[%clk 00:12:55]} {[%emt 00:00:04]} 31.
Re4 {[%clk 00:16:02]} {[%emt 00:00:01]} g5 {[%clk 00:13:01]} {[%emt 00:00:04]}
32. g3 {[%clk 00:16:07]} {[%emt 00:00:05]} Kf7 {[%clk 00:12:45]} {[%emt
00:00:25]} 33. gxf4 {[%clk 00:16:16]} {[%emt 00:00:02]} Bd5 {[%clk 00:12:46]}
{[%emt 00:00:08]} 34. Re7+ {[%clk 00:16:23]} {[%emt 00:00:04]} Kg6 {[%clk
00:12:54]} {[%emt 00:00:02]} 35. fxg5 {[%clk 00:16:17]} {[%emt 00:00:16]} Kxg5
{[%clk 00:12:59]} {[%emt 00:00:04]} 36. R1e5+ {[%clk 00:16:22]} {[%emt
00:00:06]} Kf6 {[%clk 00:13:06]} {[%emt 00:00:03]} 37. b4 {[%clk 00:16:14]}
{[%emt 00:00:18]} Ra8 {[%clk 00:13:09]} {[%emt 00:00:07]} 38. Nc5 {[%clk
00:16:15]} {[%emt 00:00:09]} Rxa3 {[%clk 00:13:07]} {[%emt 00:00:13]} 39. Ne4+
{[%clk 00:16:23]} {[%emt 00:00:01]} Kg6 {[%clk 00:13:04]} {[%emt 00:00:12]} 40.
Rg5+ {[%clk 00:16:31]} {[%emt 00:00:02]} Kh6 {[%clk 00:13:08]} {[%emt
00:00:06]} 41. f4 {[%clk 00:15:44]} {[%emt 00:00:57]} Ra1+ {[%clk 00:13:05]}
{[%emt 00:00:13]} 42. Kf2 {[%clk 00:15:53]} {[%emt 00:00:02]} Ra2+ {[%clk
00:13:11]} {[%emt 00:00:05]} 43. Kg3 {[%clk 00:16:01]} Ra3+ {[%clk 00:13:15]}
{[%emt 00:00:06]} 44. Kg4 {[%clk 00:16:10]} {[%emt 00:00:01]} Bxe4 {[%clk
00:13:17]} {[%emt 00:00:08]} 45. Rxe4 {[%clk 00:16:18]} {[%emt 00:00:02]} Rg3+
{[%clk 00:12:50]} {[%emt 00:00:37]} 46. hxg3 {[%clk 00:16:23]} {[%emt
00:00:05]} c5 {[%clk 00:12:59]} {[%emt 00:00:01]} 47. Re6 {[%clk 00:16:29]}
{[%emt 00:00:05]} 1-0

[Event "Chessity Nationale Pupillendag 2018 - Groep F"]
[Site "Meppel, Netherlands"]
[Date "2018.06.23"]
[Round "3.3"]
[White "Geldof, Wouter"]
[Black "Kazarjan, Gachatur"]
[Result "0-1"]
[TimeControl "15 min + 10 sec"]
[WhiteElo "701"]
[BlackElo "1020"]

1. e4 {[%clk 00:15:19]} e6 {[%clk 00:15:19]} {[%emt 00:00:02]} 2. Nf3 {[%clk
00:15:27]} {[%emt 00:00:02]} d5 {[%clk 00:15:27]} {[%emt 00:00:01]} 3. d3
{[%clk 00:15:30]} {[%emt 00:00:08]} Nd7 {[%clk 00:15:30]} {[%emt 00:00:06]} 4.
exd5 {[%clk 00:15:30]} {[%emt 00:00:11]} exd5 {[%clk 00:15:39]} {[%emt
00:00:01]} 5. d4 {[%clk 00:15:39]} {[%emt 00:00:01]} c5 {[%clk 00:15:46]}
{[%emt 00:00:04]} 6. c3 {[%clk 00:15:34]} {[%emt 00:00:13]} Ngf6 {[%clk
00:15:52]} {[%emt 00:00:05]} 7. Bg5 {[%clk 00:15:39]} {[%emt 00:00:05]} h6
{[%clk 00:15:47]} {[%emt 00:00:15]} 8. Bh4 {[%clk 00:15:44]} {[%emt 00:00:04]}
Qb6 {[%clk 00:15:50]} {[%emt 00:00:08]} 9. Qe2+ {[%clk 00:15:30]} {[%emt
00:00:23]} Be7 {[%clk 00:15:58]} {[%emt 00:00:02]} 10. Bxf6 {[%clk 00:15:32]}
{[%emt 00:00:09]} Nxf6 {[%clk 00:16:04]} {[%emt 00:00:04]} 11. Nh4 {[%clk
00:15:35]} {[%emt 00:00:05]} Ne4 {[%clk 00:15:52]} {[%emt 00:00:23]} 12. f3
{[%clk 00:15:35]} {[%emt 00:00:08]} Bxh4+ {[%clk 00:15:59]} {[%emt 00:00:05]}
13. g3 {[%clk 00:15:41]} {[%emt 00:00:05]} Be7 {[%clk 00:15:52]} {[%emt
00:00:17]} 14. fxe4 {[%clk 00:15:49]} {[%emt 00:00:02]} dxe4 {[%clk 00:15:48]}
{[%emt 00:00:13]} 15. Qxe4 {[%clk 00:15:57]} {[%emt 00:00:03]} cxd4 {[%clk
00:15:46]} {[%emt 00:00:12]} 16. cxd4 {[%clk 00:16:04]} {[%emt 00:00:02]} Qxb2
{[%clk 00:15:16]} {[%emt 00:00:40]} 17. Bc4 {[%clk 00:15:41]} {[%emt 00:00:33]}
Bh3 {[%clk 00:15:08]} {[%emt 00:00:18]} 18. Qf4 {[%clk 00:15:35]} {[%emt
00:00:14]} O-O {[%clk 00:15:12]} {[%emt 00:00:09]} 19. Qe4 {[%clk 00:15:32]}
{[%emt 00:00:09]} Qxa1 {[%clk 00:15:16]} {[%emt 00:00:10]} 20. Bd3 {[%clk
00:15:40]} {[%emt 00:00:01]} g6 {[%clk 00:15:20]} {[%emt 00:00:07]} 21. Qxe7
{[%clk 00:15:40]} {[%emt 00:00:10]} Rfe8 {[%clk 00:15:29]} {[%emt 00:00:01]} 22.
Qxe8+ {[%clk 00:15:13]} {[%emt 00:00:36]} Rxe8+ {[%clk 00:15:36]} {[%emt
00:00:03]} 23. Kd2 {[%clk 00:15:17]} {[%emt 00:00:05]} Qxa2+ {[%clk 00:15:42]}
{[%emt 00:00:06]} 24. Bc2 {[%clk 00:15:16]} {[%emt 00:00:11]} Bf5 {[%clk
00:15:48]} {[%emt 00:00:04]} 25. Rc1 {[%clk 00:15:11]} {[%emt 00:00:10]} Rc8
{[%clk 00:15:53]} {[%emt 00:00:09]} 26. g4 {[%clk 00:15:05]} {[%emt 00:00:16]}
Rxc2+ {[%clk 00:16:00]} {[%emt 00:00:04]} 27. Kd1 {[%clk 00:15:02]} {[%emt
00:00:11]} Rxc1+ {[%clk 00:16:05]} {[%emt 00:00:08]} 28. Kxc1 {[%clk 00:15:08]}
{[%emt 00:00:03]} Qc2# {[%clk 00:16:14]} {[%emt 00:00:01]} 0-1

[Event "Chessity Nationale Pupillendag 2018 - Groep F"]
[Site "Meppel, Netherlands"]
[Date "2018.06.23"]
[Round "3.4"]
[White "Van Batenburg, Mees"]
[Black "Arnold, Rhys"]
[Result "1-0"]
[TimeControl "15 min + 10 sec"]
[WhiteElo "962"]
[BlackElo "670"]

1. e4 {[%clk 00:15:19]} {[%emt 00:02:20]} c5 {[%clk 00:15:16]} {[%emt
00:00:04]} 2. d4 {[%clk 00:15:26]} {[%emt 00:00:03]} cxd4 {[%clk 00:15:23]}
{[%emt 00:00:03]} 3. Nf3 {[%emt 00:00:01]} e6 {[%emt 00:00:08]} 4. c3 {[%emt
00:00:03]} dxc3 {[%emt 00:00:14]} 5. Nxc3 {[%clk 00:15:08]} {[%emt 00:00:02]}
Be7 {[%clk 00:15:28]} {[%emt 00:00:05]} 6. Bf4 {[%clk 00:15:11]} {[%emt
00:00:06]} Nc6 {[%clk 00:15:25]} {[%emt 00:00:14]} 7. Nb5 {[%clk 00:15:16]}
{[%emt 00:00:02]} d6 {[%clk 00:15:19]} {[%emt 00:00:19]} 8. e5 {[%clk
00:15:15]} {[%emt 00:00:11]} d5 {[%clk 00:15:20]} {[%emt 00:00:08]} 9. Nc3
{[%clk 00:14:51]} {[%emt 00:00:34]} Bb4 {[%clk 00:15:10]} {[%emt 00:00:21]} 10.
a3 {[%clk 00:14:52]} {[%emt 00:00:09]} Ba5 {[%clk 00:15:16]} {[%emt 00:00:04]}
11. Bb5 {[%clk 00:14:49]} {[%emt 00:00:13]} a6 {[%clk 00:15:22]} {[%emt
00:00:04]} 12. Ba4 {[%emt 00:00:04]} b5 {[%clk 00:15:29]} {[%emt 00:00:02]} 13.
Bb3 {[%clk 00:14:30]} {[%emt 00:00:35]} Nge7 {[%clk 00:15:26]} {[%emt
00:00:14]} 14. O-O {[%clk 00:14:26]} {[%emt 00:00:14]} h6 {[%clk 00:15:27]}
{[%emt 00:00:10]} 15. Bc2 {[%clk 00:14:19]} {[%emt 00:00:14]} O-O {[%clk
00:15:21]} {[%emt 00:00:20]} 16. b4 {[%clk 00:14:27]} {[%emt 00:00:01]} Bb6
{[%clk 00:15:27]} {[%emt 00:00:03]} 17. Qd3 {[%clk 00:14:09]} {[%emt 00:00:27]}
Nf5 {[%clk 00:15:28]} {[%emt 00:00:12]} 18. g4 {[%clk 00:13:35]} {[%emt
00:00:44]} d4 {[%clk 00:15:08]} {[%emt 00:00:29]} 19. Ne2 {[%clk 00:13:20]}
{[%emt 00:00:25]} g6 {[%clk 00:13:55]} {[%emt 00:01:23]} 20. gxf5 {[%clk
00:13:24]} {[%emt 00:00:04]} exf5 {[%clk 00:14:03]} {[%emt 00:00:04]} 21. Bxh6
{[%clk 00:13:30]} {[%emt 00:00:04]} Re8 {[%clk 00:14:10]} {[%emt 00:00:02]} 22.
Bg5 {[%clk 00:13:32]} {[%emt 00:00:09]} Qd5 {[%clk 00:13:55]} {[%emt 00:00:19]}
23. Bb3 {[%clk 00:13:05]} {[%emt 00:00:44]} Qe4 {[%clk 00:13:40]} {[%emt
00:00:17]} 24. Qxe4 {[%clk 00:13:02]} {[%emt 00:00:20]} fxe4 {[%emt 00:00:37]}
25. Nd2 {[%clk 00:12:32]} {[%emt 00:00:02]} d3 {[%clk 00:13:49]} {[%emt
00:00:11]} 26. Nc3 {[%clk 00:12:18]} {[%emt 00:00:17]} Rxe5 {[%clk 00:13:53]}
{[%emt 00:00:14]} 27. Bf6 {[%clk 00:11:51]} {[%emt 00:00:31]} Re8 {[%clk
00:13:54]} {[%emt 00:00:13]} 28. Ndxe4 {[%clk 00:11:45]} {[%emt 00:00:11]} Bf5
{[%clk 00:13:39]} {[%emt 00:00:30]} 29. Nd6 {[%clk 00:11:24]} {[%emt 00:00:25]}
Reb8 {[%clk 00:13:08]} {[%emt 00:00:40]} 30. Bd5 {[%clk 00:11:04]} {[%emt
00:00:31]} Bd7 {[%clk 00:12:58]} {[%emt 00:00:27]} 31. Bxf7+ {[%emt 00:00:13]}
Kf8 {[%clk 00:13:06]} 32. Rae1 {[%clk 00:11:02]} {[%emt 00:00:07]} Bh3 {[%clk
00:12:53]} {[%emt 00:00:27]} 33. Be7+ {[%emt 00:00:08]} Kg7 {[%clk 00:12:57]}
{[%emt 00:00:01]} 34. Bd5 {[%clk 00:10:22]} {[%emt 00:00:58]} Bxf1 {[%clk
00:12:54]} {[%emt 00:00:14]} 35. Bxc6 {[%clk 00:10:29]} {[%emt 00:00:03]} Ra7
{[%clk 00:12:59]} {[%emt 00:00:04]} 36. Kxf1 {[%clk 00:10:36]} {[%emt
00:00:03]} Bd4 {[%clk 00:12:48]} {[%emt 00:00:21]} 37. Nd5 {[%clk 00:10:13]}
{[%emt 00:00:34]} d2 {[%clk 00:12:44]} {[%emt 00:00:14]} 38. Rd1 {[%clk
00:10:07]} {[%emt 00:00:16]} Rxe7 {[%clk 00:12:36]} {[%emt 00:00:17]} 39. Nxe7
{[%clk 00:10:15]} {[%emt 00:00:02]} Rf8 {[%clk 00:12:45]} {[%emt 00:00:01]} 40.
Rxd2 {[%clk 00:10:10]} {[%emt 00:00:16]} Bc3 {[%clk 00:12:48]} {[%emt
00:00:06]} 41. Rd3 {[%clk 00:09:52]} {[%emt 00:00:26]} Bf6 {[%clk 00:12:54]}
{[%emt 00:00:06]} 42. Nd5 {[%clk 00:09:51]} {[%emt 00:00:11]} Bh4 {[%clk
00:12:58]} {[%emt 00:00:06]} 43. f4 {[%clk 00:09:34]} {[%emt 00:00:28]} Rd8
{[%clk 00:12:53]} {[%emt 00:00:08]} 44. Ne8+ {[%clk 00:09:39]} {[%emt
00:00:13]} Kh6 {[%clk 00:12:55]} {[%emt 00:00:07]} 45. Rh3 {[%clk 00:09:41]}
{[%emt 00:00:09]} Kh5 {[%clk 00:12:58]} {[%emt 00:00:06]} 46. Nef6 {[%clk
00:09:48]} {[%emt 00:00:03]} Kh6 {[%emt 00:00:04]} 47. Rxh4 {[%emt 00:00:03]}
1-0